{"text_format":"1","workbook":"xlsx","n_sheets":8,"sheets":["Общая информация","Ед. поставщик п.4 ч.1","Ед. поставщик п.5 ч.1","Ед.поставщик за искл. п.4,5 ч.1","Состоявшиеся аукционы","Несостоявшиеся аукционы","Иные конкурентные закупки","Настройки"],"not_rendered":{"charts":0,"images":0,"macros":1,"external_links":0,"defined_names":1,"comments":0,"pivot_tables":0},"unopened":[],"bounds":{"document_bytes":16777216,"sheet_cells":100000,"rows_first":2000,"rows_last":500,"rows_between":2000,"halvings":0,"cell_chars":16384,"cell_head_chars":4096},"cells_cut":0,"cells_raw":0,"read":"whole","date_system":"1900"}

{"sheet":"Общая информация","index":0,"n_rows":19,"n_cols":13,"rows_kept":19,"cut":false,"hidden":false,"merged":[[4,7,4,9],[4,12,4,13],[10,12,10,13],[10,9,10,11],[3,0,3,1],[3,4,3,6],[3,7,3,9],[3,12,3,13],[4,0,4,1],[7,0,7,2],[7,3,7,5],[7,6,7,8],[7,12,7,13],[7,9,7,11],[4,4,4,6],[9,0,9,2],[9,3,9,5],[9,6,9,8],[9,12,9,13],[9,9,9,11],[8,0,8,2],[8,3,8,5],[8,6,8,8],[8,12,8,13],[8,9,8,11],[12,9,12,11],[14,0,14,2],[14,3,14,5],[14,6,14,8],[14,12,14,13],[14,9,14,11],[12,0,12,2],[12,3,12,5],[12,6,12,8],[13,9,13,11],[13,12,13,13],[0,0,0,3],[0,4,0,13],[18,0,19,2],[18,3,19,6],[13,0,13,2],[13,3,13,5],[13,6,13,8],[11,12,11,13],[11,9,11,11],[10,0,10,2],[10,3,10,5],[10,6,10,8],[11,6,11,8],[11,0,11,2],[11,3,11,5],[12,12,12,13]]}
["Наименование организации:",null,null,null,"Муниципальное бюджетное учреждение дополнительного образования Центр творчества \"Радуга\" муниципального образования Тимашевский район"]
[]
[]
["СГОЗ  (общий)",null,0,null,"п.4 (10% от СГОЗ или 2 000 000)",null,null,0,null,null,null,"п.5 (50% СГОЗ)",0]
["СГОЗ (остаток)",null,{"$f":"C4-G15+J15","v":-1674225.4800000002},null,"п.4 (остаток)",null,null,{"$f":"H4-G12","v":-1686688.2300000002},null,null,null,"п.5 (остаток)",{"$f":"M4-G13","v":0}]
[]
[]
["Способ определения поставщика (подрядчика, исполнителя)",null,null,"Начальная (максимальная) цена контракта",null,null,"Фактическая цена контракта",null,null,"Расторжение контракта по соглашению сторон",null,null,"Экономия "]
["Состоявшиеся аукционы",null,null,{"$f":"'Состоявшиеся аукционы'!G2","v":0},null,null,{"$f":"'Состоявшиеся аукционы'!Q2","v":0},null,null,{"$f":"'Состоявшиеся аукционы'!AB2","v":0},null,null,{"$f":"D9-G9","v":0}]
["Несостоявшиеся аукционы",null,null,{"$f":"'Несостоявшиеся аукционы'!G2","v":0},null,null,{"$f":"'Несостоявшиеся аукционы'!Q2","v":0},null,null,{"$f":"'Несостоявшиеся аукционы'!AB2","v":0},null,null,0]
["Иные конкурентные закупки",null,null,{"$f":"'Иные конкурентные закупки'!G2","v":0},null,null,{"$f":"'Иные конкурентные закупки'!Q2","v":0},null,null,{"$f":"'Иные конкурентные закупки'!AB2","v":0},null,null,0]
["Ед. поставщик п.4 ч.1 ",null,null,{"$f":"'Ед. поставщик п.4 ч.1'!H2","v":1686688.2300000002},null,null,{"$f":"D12","v":1686688.2300000002},null,null,{"$f":"'Ед. поставщик п.4 ч.1'!V2","v":12462.75},null,null,0]
["Ед. поставщик п. 5 ч. 1",null,null,{"$f":"'Ед. поставщик п.5 ч.1'!H2","v":0},null,null,{"$f":"D13","v":0},null,null,{"$f":"'Ед. поставщик п.5 ч.1'!V2","v":0},null,null,0]
["Ед.поставщик за искл. п.4,5 ч.1",null,null,{"$f":"'Ед.поставщик за искл. п.4,5 ч.1'!G2","v":0},null,null,{"$f":"D14","v":0},null,null,{"$f":"'Ед.поставщик за искл. п.4,5 ч.1'!T2","v":0},null,null,0]
["Всего",null,null,{"$f":"SUM(D9:D14)","v":1686688.2300000002},null,null,{"$f":"SUM(G9:G14)","v":1686688.2300000002},null,null,{"$f":"SUM(J9:J14)","v":12462.75},null,null,0]
[]
[]
[]
["Всего средств потрачено по заключенным контрактам",null,null,{"$f":"'Ед. поставщик п.4 ч.1'!P2+'Ед. поставщик п.5 ч.1'!P2+'Ед.поставщик за искл. п.4,5 ч.1'!N2+'Состоявшиеся аукционы'!V2+'Несостоявшиеся аукционы'!V2+'Иные конкурентные закупки'!V2","v":1328662.8799999999}]

{"sheet":"Ед. поставщик п.4 ч.1","index":1,"n_rows":159,"n_cols":24,"rows_kept":159,"cut":false,"hidden":false,"merged":[[148,12,150,12],[148,3,150,3],[148,4,150,4],[148,5,150,5],[148,6,150,6],[148,7,150,7],[148,8,150,8],[148,9,150,9],[148,10,150,10],[148,11,150,11],[93,14,101,14],[93,20,101,20],[93,1,101,1],[93,21,101,21],[93,2,101,2],[93,22,101,22],[93,3,101,3],[93,4,101,4],[93,5,101,5],[93,6,101,6],[93,7,101,7],[93,8,101,8],[93,9,101,9],[93,10,101,10],[93,11,101,11],[93,12,101,12],[25,22,48,22],[25,3,48,3],[25,4,48,4],[25,5,48,5],[25,6,48,6],[25,7,48,7],[25,8,48,8],[25,9,48,9],[25,10,48,10],[25,11,48,11],[25,12,48,12],[8,22,16,22],[8,3,16,3],[8,4,16,4],[8,5,16,5],[8,6,16,6],[8,7,16,7],[8,8,16,8],[8,9,16,9],[8,10,16,10],[8,11,16,11],[8,12,16,12],[52,12,60,12],[61,0,69,0],[61,14,69,14],[61,20,69,20],[61,1,69,1],[61,21,69,21],[61,2,69,2],[61,22,69,22],[61,3,69,3],[61,4,69,4],[61,5,69,5],[61,6,69,6],[61,7,69,7],[61,8,69,8],[61,9,69,9],[61,10,69,10],[61,11,69,11],[61,12,69,12],[52,3,60,3],[52,4,60,4],[52,5,60,5],[52,6,60,6],[52,7,60,7],[52,8,60,8],[52,9,60,9],[52,10,60,10],[52,11,60,11],[17,0,24,0],[17,14,24,14],[17,20,24,20],[17,1,24,1],[17,21,24,21],[17,2,24,2],[17,22,24,22],[17,3,24,3],[17,4,24,4],[17,5,24,5],[17,6,24,6],[17,7,24,7],[17,8,24,8],[17,9,24,9],[17,10,24,10],[17,11,24,11],[17,12,24,12],[8,0,16,0],[8,14,16,14],[8,20,16,20],[8,1,16,1],[8,21,16,21],[8,2,16,2],[137,0,139,0],[137,14,139,14],[137,20,139,20],[137,1,139,1],[137,21,139,21],[137,2,139,2],[137,22,139,22],[137,3,139,3],[137,4,139,4],[137,5,139,5],[137,6,139,6],[137,7,139,7],[137,8,139,8],[137,9,139,9],[137,10,139,10],[137,11,139,11],[137,12,139,12],[25,0,48,0],[25,14,48,14],[25,20,48,20],[25,1,48,1],[25,21,48,21],[25,2,48,2],[112,21,119,21],[112,2,119,2],[112,22,119,22],[112,3,119,3],[112,4,119,4],[112,5,119,5],[112,6,119,6],[112,7,119,7],[112,8,119,8],[112,9,119,9],[112,10,119,10],[112,11,119,11],[112,12,119,12],[148,0,150,0],[148,14,150,14],[148,20,150,20],[148,1,150,1],[148,21,150,21],[148,2,150,2],[148,22,150,22],[120,21,127,21],[120,2,127,2],[120,22,127,22],[120,3,127,3],[120,4,127,4],[120,5,127,5],[120,6,127,6],[120,7,127,7],[120,8,127,8],[120,9,127,9],[120,10,127,10],[120,11,127,11],[120,12,127,12],[85,14,92,14],[85,20,92,20],[85,21,92,21],[85,2,92,2],[85,22,92,22],[85,3,92,3],[85,4,92,4],[85,5,92,5],[85,6,92,6],[85,7,92,7],[85,8,92,8],[76,14,84,14],[76,20,84,20],[76,21,84,21],[76,2,84,2],[76,22,84,22],[76,3,84,3],[76,4,84,4],[76,5,84,5],[76,6,84,6],[76,7,84,7],[76,8,84,8],[52,0,60,0],[52,14,60,14],[52,20,60,20],[52,1,60,1],[52,21,60,21],[52,2,60,2],[52,22,60,22],[102,14,109,14],[102,20,109,20],[102,21,109,21],[102,22,109,22],[102,3,109,3],[102,4,109,4],[102,5,109,5],[102,6,109,6],[102,7,109,7],[102,8,109,8],[102,9,109,9],[102,10,109,10],[120,0,127,0],[120,14,127,14],[120,20,127,20],[120,1,127,1],[112,0,119,0],[112,14,119,14],[112,20,119,20],[112,1,119,1],[102,0,109,0],[102,1,109,1],[102,2,109,2],[102,11,109,11],[102,12,109,12],[85,0,92,0],[85,1,92,1],[85,9,92,9],[85,10,92,10],[85,11,92,11],[85,12,92,12],[70,3,75,3],[70,4,75,4],[70,5,75,5],[70,6,75,6],[70,7,75,7],[2,0,2,4],[1,18,1,20],[1,13,1,14],[3,9,3,10],[3,12,3,13],[3,14,3,15],[1,10,1,12],[49,0,51,0],[49,14,51,14],[49,20,51,20],[49,1,51,1],[49,7,51,7],[49,8,51,8],[49,9,51,9],[49,10,51,10],[49,11,51,11],[49,12,51,12],[70,0,75,0],[70,14,75,14],[70,20,75,20],[70,1,75,1],[70,21,75,21],[70,2,75,2],[70,22,75,22],[70,8,75,8],[70,9,75,9],[70,10,75,10],[70,11,75,11],[70,12,75,12],[145,22,147,22],[145,12,147,12],[145,3,147,3],[145,4,147,4],[145,5,147,5],[145,6,147,6],[145,7,147,7],[145,8,147,8],[145,9,147,9],[145,10,147,10],[145,11,147,11],[145,0,147,0],[145,14,147,14],[145,20,147,20],[145,1,147,1],[145,21,147,21],[145,2,147,2],[49,21,51,21],[49,2,51,2],[49,3,51,3],[49,4,51,4],[49,5,51,5],[49,6,51,6],[49,22,51,22],[76,0,84,0],[76,1,84,1],[76,9,84,9],[76,10,84,10],[76,11,84,11],[76,12,84,12],[93,0,101,0]]}
[]
[null,null,null,null,null,null,"Сумма заключенных контрактов",{"$f":"SUM(H9:H10070)","v":1686688.2300000002},null,null,null,null,null,"Сумма средств выплаченных по контрактам",null,{"$f":"SUM(P9:P10070)","v":1328662.8799999999},null,null,"Общая сумма расторжений по контрактам/договорам",null,null,{"$f":"SUM(V9:V10070)","v":12462.75}]
[]
[]
[]
["№ п/п","Наименование муниципальной программы, национального или регионального проекта","Контракт заключен в электронном виде посредством                             АИС \"Портал поставщиков\"   (Да/Нет)","Код бюджетной классификации","№ договора/контракта","Дата заключения договора/контракта","Предмет договора/контракта","Цена договора/контракта","Остаток по контракту","ИНН поставщика (подрядчика, исполнителя) ","Поставщик (подрядчик, исполнитель)","СМП и СОНО                       (да/нет)","Сроки поставки товара (оказания услуги, выполнения работы), согласно договора/контракта; Предоставление документов на оплату Заказчику","Фактическая дата поставки товара (оказания услуги, выполнения работы)","Сроки оплаты согласно договора/контракта","Сумма согласно документа об исполнении контракта заказчиком","Фактическая дата оплаты","Изменение контракта (№, дата)","Изменение контракта (увеличение цены контракта в рублях)","Изменение контракта (уменьшение цены контракта в рублях)","Расторжение контракта (№, дата)","Сумма расторжения в рублях","Примечание"]
["1","2","3","4","5","6","7","8","9","10","11","12","13","14","15","16","17","18","19","20","21","22","23"]
[1,"Муниципальная программа \"Развитие образования\"",null,"902 0113 1310110490 244","№ 1","09.01.2020","Поставка бумаги для офисной техники",20000,{"$f":"H8-P8","v":0},"2353019514","ИП Котляров К.И.",null,"В течение 15 рабочих дней, со дня подписания сторонами контракта","2020-01-10","Не позднее 30 календарных дней с момента подписания акта приема-сдачи и документа на оплату",20000,"2020-01-10",null,null,null,null,null,"Пример"]
[1,"Муниципальная программа \"Развитие образования\"",null,"925 0000 0000000000244","№ 70","2020-12-31","Услуги физической охраны объектов",381600,{"$f":"IF(X9 = 1, H9 + SUM(S9:S17) - SUM(T9:T17) - SUM(P9:P17) - V9,0)","v":-117120},"2353021954","ООО \"ЧОП \"Беркут\"",null,"Постоянно, в течение срока действия контракта; до 25 числа месяца оказания услуг","2021-01-31","Не позднее 25 календарных дней с момента подписания акта и документа на оплату",55800,"2021-02-02",null,null,null,null,null,null,1]
[null,null,null,null,null,null,null,null,null,null,null,null,null,"2021-02-28",null,50400,"2021-03-02",null,null,null,null,null,null,1]
[null,null,null,null,null,null,null,null,null,null,null,null,null,"2021-03-31",null,55800,"2021-04-01",null,null,null,null,null,null,1]
[null,null,null,null,null,null,null,null,null,null,null,null,null,"2021-04-30",null,54000,"2021-05-14",null,null,null,null,null,null,1]
[null,null,null,null,null,null,null,null,null,null,null,null,null,"2021-05-31",null,55800,"2021-06-01",null,null,null,null,null,null,1]
[null,null,null,null,null,null,null,null,null,null,null,null,null,"2021-06-30",null,54000,"2021-07-05",null,null,null,null,null,null,1]
[null,null,null,null,null,null,null,null,null,null,null,null,null,"2021-07-30",null,55800,"2021-08-02",null,null,null,null,null,null,1]
[null,null,null,null,null,null,null,null,null,null,null,null,null,"2021-08-31",null,59520,"2021-09-16",null,null,null,null,null,null,1]
[null,null,null,null,null,null,null,null,null,null,null,null,null,"2021-09-30",null,57600,"2021-10-01",null,null,null,null,null,null,1]
[2,"муниципальная программа \"Развитие образования\"",null,"925 0000 0000000000244","№ 14-Т","2020-12-31","Услуги по контролю за работой тревожной сигнализации ",16800,{"$f":"IF(X18 = 2, H18 + SUM(S18:S25) - SUM(T18:T25) - SUM(P18:P25) - V18,0)","v":0},"2353021954","ООО \"ЧОП \"Беркут\"",null,"Постоянно, в течение срока действия контракта; до 25 числа месяца оказания услуг","2021-01-31","Не позднее 25 календарных дней с момента подписания акта и документа на оплату",1400,"2021-02-02",null,null,null,"№ б/н от 31.08.2021",5600,null,2]
[null,null,null,null,null,null,null,null,null,null,null,null,null,"2021-02-28",null,1400,"2021-03-02",null,null,null,null,null,null,2]
[null,null,null,null,null,null,null,null,null,null,null,null,null,"2021-03-31",null,1400,"2021-04-01",null,null,null,null,null,null,2]
[null,null,null,null,null,null,null,null,null,null,null,null,null,"2021-04-30",null,1400,"2021-05-12",null,null,null,null,null,null,2]
[null,null,null,null,null,null,null,null,null,null,null,null,null,"2021-05-31",null,1400,"2021-06-01",null,null,null,null,null,null,2]
[null,null,null,null,null,null,null,null,null,null,null,null,null,"2021-06-30",null,1400,"2021-07-05",null,null,null,null,null,null,2]
[null,null,null,null,null,null,null,null,null,null,null,null,null,"2021-07-30",null,1400,"2021-08-02",null,null,null,null,null,null,2]
[null,null,null,null,null,null,null,null,null,null,null,null,null,"2021-08-31",null,1400,"2021-09-16",null,null,null,null,null,null,2]
[3,"Муниципальная программа \"Развитие образования\"",null,"925 0000 0000000000244","№ 23070500324","2020-12-31","Услуги электроэнергии",151168.12,{"$f":"IF(X26 = 3, H26 + SUM(S26:S49) - SUM(T26:T49) - SUM(P26:P49) - V26,0)","v":9646.9799999999523},"2308119595","ПАО \"ТНС энерго Кубань\"",null,"Постоянно, в течение срока действия контракта; до 25 числа месяца оказания услуг",null,"до 10 числа месяца 30% стоимости  подлежащего оплате объема покупки электрической энергии, до 25 числа месяца 40 % стоимости  подлежащего оплате объема ",8393.14,"2021-01-18",null,null,null,null,null,null,3]
[null,null,null,null,null,null,null,null,null,null,null,null,null,null,null,4331.04,"2021-01-18",null,null,null,null,null,null,3]
[null,null,null,null,null,null,null,null,null,null,null,null,null,null,null,6945.98,"2021-01-22",null,null,null,null,null,null,3]
[null,null,null,null,null,null,null,null,null,null,null,null,null,null,null,653.21,"2021-02-16",null,null,null,null,null,null,3]
[null,null,null,null,null,null,null,null,null,null,null,null,null,null,null,5353.86,"2021-02-16",null,null,null,null,null,null,3]
[null,null,null,null,null,null,null,null,null,null,null,null,null,null,null,4015.39,"2021-03-01",null,null,null,null,null,null,3]
[null,null,null,null,null,null,null,null,null,null,null,null,null,null,null,7074.91,"2021-03-16",null,null,null,null,null,null,3]
[null,null,null,null,null,null,null,null,null,null,null,null,null,null,null,5565.75,"2021-03-16",null,null,null,null,null,null,3]
[null,null,null,null,null,null,null,null,null,null,null,null,null,null,null,4174.3,"2021-04-01",null,null,null,null,null,null,3]
[null,null,null,null,null,null,null,null,null,null,null,null,null,null,null,3600.2,"2021-04-14",null,null,null,null,null,null,3]
[null,null,null,null,null,null,null,null,null,null,null,null,null,null,null,5272.54,"2021-04-14",null,null,null,null,null,null,3]
[null,null,null,null,null,null,null,null,null,null,null,null,null,null,null,3954.41,"2021-05-12",null,null,null,null,null,null,3]
[null,null,null,null,null,null,null,null,null,null,null,null,null,null,null,3797.2,"2021-06-01",null,null,null,null,null,null,3]
[null,null,null,null,null,null,null,null,null,null,null,null,null,null,null,3935.28,"2021-06-15",null,null,null,null,null,null,3]
[null,null,null,null,null,null,null,null,null,null,null,null,null,null,null,2951.46,"2021-07-05",null,null,null,null,null,null,3]
[null,null,null,null,null,null,null,null,null,null,null,null,null,null,null,5927.3,"2021-07-15",null,null,null,null,null,null,3]
[null,null,null,null,null,null,null,null,null,null,null,null,null,null,null,5895.55,"2021-07-15",null,null,null,null,null,null,3]
[null,null,null,null,null,null,null,null,null,null,null,null,null,null,null,4421.66,"2021-08-02",null,null,null,null,null,null,3]
[null,null,null,null,null,null,null,null,null,null,null,null,null,null,null,15864.74,"2021-08-17",null,null,null,null,null,null,3]
[null,null,null,null,null,null,null,null,null,null,null,null,null,null,null,13239.36,"2021-08-17",null,null,null,null,null,null,3]
[null,null,null,null,null,null,null,null,null,null,null,null,null,null,null,9929.52,"2021-09-01",null,null,null,null,null,null,3]
[null,null,null,null,null,null,null,null,null,null,null,null,null,null,null,8468.36,"2021-09-16",null,null,null,null,null,null,3]
[null,null,null,null,null,null,null,null,null,null,null,null,null,null,null,1404.72,"2021-09-16",null,null,null,null,null,null,3]
[null,null,null,null,null,null,null,null,null,null,null,null,null,null,null,6351.26,"2021-10-01",null,null,null,null,null,null,3]
[4,"Муниципальная программа \"Развитие образования\"",null,"925 0000 0000000000244","№ 25-11-02739/21","2021-12-31","Поставка газа",153813.70000000001,{"$f":"IF(X50 = 4, H50 + SUM(S50:S52) - SUM(T50:T52) - SUM(P50:P52) - V50,0)","v":24469.5},"2308070396","ООО \"Газпром межрегионгаз Краснодар\"",null,"Постоянно, в течение срока действия контракта;","2021-02-20","Не позднее 25 календарных дней с момента подписания акта и документа на оплату",58909.68,"2021-02-12",null,null,null,null,null,null,4]
[null,null,null,null,null,null,null,null,null,null,null,null,null,"2021-03-20",null,30776.79,"2021-03-12",null,null,null,null,null,null,4]
[null,null,null,null,null,null,null,null,null,null,null,null,null,"2021-03-31",null,39657.730000000003,"2021-04-13",null,null,null,null,null,null,4]
[5,"Муниципальная программа \"Развитие образования\"",null,"925 0000 0000000000244","№ 55-С","2020-12-31","Услуги по техническому обслуживанию объектовой станции системы пожарного мониторинга ПАК \"Стрелец-Мониторинг\"",72000,{"$f":"IF(X53 = 5, H53 + SUM(S53:S61) - SUM(T53:T61) - SUM(P53:P61) - V53,0)","v":18000},"2353002302","ООО \"Сигнал\"",null,"Постоянно, в течение срока действия контракта;","2021-01-21","Не позднее 25 календарных дней с момента подписания акта и документа на оплату",6000,"2021-02-01",null,null,null,null,null,null,5]
[null,null,null,null,null,null,null,null,null,null,null,null,null,"2021-02-24",null,6000,"2021-02-24",null,null,null,null,null,null,5]
[null,null,null,null,null,null,null,null,null,null,null,null,null,"2021-03-22",null,6000,"2021-03-26",null,null,null,null,null,null,5]
[null,null,null,null,null,null,null,null,null,null,null,null,null,"2021-04-21",null,6000,"2021-04-26",null,null,null,null,null,null,5]
[null,null,null,null,null,null,null,null,null,null,null,null,null,"2021-05-21",null,6000,"2021-05-21",null,null,null,null,null,null,5]
[null,null,null,null,null,null,null,null,null,null,null,null,null,"2021-06-21",null,6000,"2021-06-21",null,null,null,null,null,null,5]
[null,null,null,null,null,null,null,null,null,null,null,null,null,"2021-07-31",null,6000,"2021-08-02",null,null,null,null,null,null,5]
[null,null,null,null,null,null,null,null,null,null,null,null,null,"2021-08-31",null,6000,"2021-08-31",null,null,null,null,null,null,5]
[null,null,null,null,null,null,null,null,null,null,null,null,null,"2021-09-30",null,6000,"2021-10-01",null,null,null,null,null,null,5]
[6,"Муниципальная программа \"Развитие образования\"",null,"925 0000 0000000000244","№ 72","2020-12-31","Услуги по техническому обслуживанию автоматических установок пожарной безопасности ",48000,{"$f":"IF(X62 = 6, H62 + SUM(S62:S70) - SUM(T62:T70) - SUM(P62:P70) - V62,0)","v":12000},"2353002302","ООО \"Сигнал\"",null,"Постоянно, в течение срока действия контракта;","2021-01-21","Не позднее 25 календарных дней с момента подписания акта и документа на оплату",4000,"2021-02-01",null,null,null,null,null,null,6]
[null,null,null,null,null,null,null,null,null,null,null,null,null,"2021-02-24",null,4000,"2021-02-24",null,null,null,null,null,null,6]
[null,null,null,null,null,null,null,null,null,null,null,null,null,"2021-02-22",null,4000,"2021-03-26",null,null,null,null,null,null,6]
[null,null,null,null,null,null,null,null,null,null,null,null,null,"2021-04-21",null,4000,"2021-04-26",null,null,null,null,null,null,6]
[null,null,null,null,null,null,null,null,null,null,null,null,null,"2021-05-21",null,4000,"2021-05-21",null,null,null,null,null,null,6]
[null,null,null,null,null,null,null,null,null,null,null,null,null,"2021-06-21",null,4000,"2021-06-21",null,null,null,null,null,null,6]
[null,null,null,null,null,null,null,null,null,null,null,null,null,"2021-07-31",null,4000,"2021-08-02",null,null,null,null,null,null,6]
[null,null,null,null,null,null,null,null,null,null,null,null,null,"2021-08-31",null,4000,"2021-08-31",null,null,null,null,null,null,6]
[null,null,null,null,null,null,null,null,null,null,null,null,null,"2021-09-30",null,4000,"2021-10-01",null,null,null,null,null,null,6]
[7,"Муниципальная программа \"Развитие образования\"",null,"925 0000 0000000000244","№ 34550721/003359","2021-01-22","Поставка бензина",81236,{"$f":"IF(X71 = 7, H71 + SUM(S71:S76) - SUM(T71:T76) - SUM(P71:P76) - V71,0)","v":0},"7743529527","ООО \"РН-Карт\"",null,"Постоянно, в течение срока действия контракта;","2021-01-31","Не позднее 15 календарных дней с момента подписания акта и документа на оплату",5955.75,"2021-02-08",null,null,null,"№ б/н от 30.06.2021 ",6862.75,null,7]
[null,null,null,null,null,null,null,null,null,null,null,null,null,"2021-02-28",null,13557.25,"2021-01-09",null,null,null,null,null,null,7]
[null,null,null,null,null,null,null,null,null,null,null,null,null,"2021-03-31",null,12095.5,"2021-04-07",null,null,null,null,null,null,7]
[null,null,null,null,null,null,null,null,null,null,null,null,null,"2021-04-30",null,13407.75,"2021-05-14",null,null,null,null,null,null,7]
[null,null,null,null,null,null,null,null,null,null,null,null,null,"2021-05-31",null,11675.5,"2021-06-08",null,null,null,null,null,null,7]
[null,null,null,null,null,null,null,null,null,null,null,null,null,"2021-06-30",null,17681.5,"2021-07-05",null,null,null,null,null,null,7]
[8,"Муниципальная программа \"Развитие образования\"",null,"925 0000 0000000000244","№ 584","2021-01-25","Услуги электросвязи",10000,{"$f":"IF(X77 = 8, H77 + SUM(S77:S85) - SUM(T77:T85) - SUM(P77:P85) - V77,0)","v":4861.3100000000004},"7707049388","ПАО \"Ростелеком\"",null,"Постоянно, в течение срока действия контракта;","2021-01-31","Не позднее 15 календарных дней с момента подписания акта и документа на оплату",391.07,"2021-02-08",null,null,null,null,null,null,8]
[null,null,null,null,null,null,null,null,null,null,null,null,null,"2021-02-28",null,520.37,"2021-03-05",null,null,null,null,null,null,8]
[null,null,null,null,null,null,null,null,null,null,null,null,null,"2021-03-31",null,644.02,"2021-04-06",null,null,null,null,null,null,8]
[null,null,null,null,null,null,null,null,null,null,null,null,null,"2021-04-30",null,606.62,"2021-05-13",null,null,null,null,null,null,8]
[null,null,null,null,null,null,null,null,null,null,null,null,null,"2021-05-31",null,514.97,"2021-06-07",null,null,null,null,null,null,8]
[null,null,null,null,null,null,null,null,null,null,null,null,null,"2021-06-30",null,643.42999999999995,"2021-07-08",null,null,null,null,null,null,8]
[null,null,null,null,null,null,null,null,null,null,null,null,null,"2021-07-31",null,655.41,"2021-08-04",null,null,null,null,null,null,8]
[null,null,null,null,null,null,null,null,null,null,null,null,null,"2021-08-31",null,629.27,"2021-09-08",null,null,null,null,null,null,8]
[null,null,null,null,null,null,null,null,null,null,null,null,null,"2021-09-30",null,533.53,"2021-10-05",null,null,null,null,null,null,8]
[9,"Муниципальная программа \"Развитие образования\"",null,"925 0000 0000000000244","№ 584-Б2","2021-01-25","Услуги междугородной и международной связи",1000,{"$f":"IF(X86 = 9, H86 + SUM(S86:S93) - SUM(T86:T93) - SUM(P86:P93) - V86,0)","v":809.15},"7707049388","ПАО \"Ростелеком\"",null,"Постоянно, в течение срока действия контракта;","2021-01-31","Не позднее 15 календарных дней с момента подписания акта и документа на оплату",14.55,"2021-02-09",null,null,null,null,null,null,9]
[null,null,null,null,null,null,null,null,null,null,null,null,null,"2021-03-31",null,22.7,"2021-04-06",null,null,null,null,null,null,9]
[null,null,null,null,null,null,null,null,null,null,null,null,null,"2021-04-30",null,11.35,"2021-05-13",null,null,null,null,null,null,9]
[null,null,null,null,null,null,null,null,null,null,null,null,null,"2021-05-31",null,16.3,"2021-06-07",null,null,null,null,null,null,9]
[null,null,null,null,null,null,null,null,null,null,null,null,null,"2021-06-30",null,6.72,"2021-07-05",null,null,null,null,null,null,9]
[null,null,null,null,null,null,null,null,null,null,null,null,null,"2021-07-31",null,13.44,"2021-08-04",null,null,null,null,null,null,9]
[null,null,null,null,null,null,null,null,null,null,null,null,null,"2021-08-31",null,22.85,"2021-09-08",null,null,null,null,null,null,9]
[null,null,null,null,null,null,null,null,null,null,null,null,null,"2021-09-30",null,82.94,"2021-10-05",null,null,null,null,null,null,9]
[10,"Муниципальная программа \"Развитие образования\"",null,"925 0000 0000000000244","4300712.19","2021-01-25","Услугм доступа к сети Интернет",30000,{"$f":"IF(X94 = 10, H94 + SUM(S94:S102) - SUM(T94:T102) - SUM(P94:P102) - V94,0)","v":7500},"7707049388","ПАО \"Ростелеком\"",null,null,"2021-01-31","Не позднее 15 календарных дней с момента подписания акта и документа на оплату",2500,"2021-02-09",null,null,null,null,null,null,10]
[null,null,null,null,null,null,null,null,null,null,null,null,null,"2021-02-28",null,2500,"2021-02-05",null,null,null,null,null,null,10]
[null,null,null,null,null,null,null,null,null,null,null,null,null,"2021-03-31",null,2500,"2021-04-06",null,null,null,null,null,null,10]
[null,null,null,null,null,null,null,null,null,null,null,null,null,"2021-04-30",null,2500,"2021-05-13",null,null,null,null,null,null,10]
[null,null,null,null,null,null,null,null,null,null,null,null,null,"2021-05-31",null,2500,"2021-06-07",null,null,null,null,null,null,10]
[null,null,null,null,null,null,null,null,null,null,null,null,null,"2021-06-30",null,2500,"2021-07-05",null,null,null,null,null,null,10]
[null,null,null,null,null,null,null,null,null,null,null,null,null,"2021-07-31",null,2500,"2021-08-04",null,null,null,null,null,null,10]
[null,null,null,null,null,null,null,null,null,null,null,null,null,"2021-08-31",null,2500,"2021-09-08",null,null,null,null,null,null,10]
[null,null,null,null,null,null,null,null,null,null,null,null,null,"2021-09-30",null,2500,"2021-10-05",null,null,null,null,null,null,10]
[11,"Муниципальная программа \"Развитие образования\"",null,"925 0000 0000000000244","№ 42","2021-01-25","Осуществление предрейсового и послересвового осмотра водителя и тех.осмотра ТС ",40000,{"$f":"IF(X103 = 11, H103 + SUM(S103:S110) - SUM(T103:T110) - SUM(P103:P110) - V103,0)","v":10720},"2353017179","ТРОКРООО \"ВОА\"",null,"Постоянно, в течение срока действия контракта;","2021-01-31","Не позднее 30 календарных дней с момента подписания акта и документа на оплату",3120,"2021-02-12",null,null,null,null,null,null,11]
[null,null,null,null,null,null,null,null,null,null,null,null,null,"2021-02-28",null,4560,"2021-03-23",null,null,null,null,null,null,11]
[null,null,null,null,null,null,null,null,null,null,null,null,null,"2021-03-31",null,4320,"2021-04-16",null,null,null,null,null,null,11]
[null,null,null,null,null,null,null,null,null,null,null,null,null,"2021-04-30",null,2160,"2021-05-14",null,null,null,null,null,null,11]
[null,null,null,null,null,null,null,null,null,null,null,null,null,"2021-05-31",null,3120,"2021-06-09",null,null,null,null,null,null,11]
[null,null,null,null,null,null,null,null,null,null,null,null,null,"2021-06-30",null,4080,"2021-07-09",null,null,null,null,null,null,11]
[null,null,null,null,null,null,null,null,null,null,null,null,null,"2021-07-31",null,3360,"2021-08-12",null,null,null,null,null,null,11]
[null,null,null,null,null,null,null,null,null,null,null,null,null,"2021-08-31",null,4560,"2021-09-15",null,null,null,null,null,null,11]
[12,"Муниципальная программа \"Развитие образования\"",null,"925 0000 0000000000244","№ 8","2021-01-25","Услуга по обеспечению отпуска воды",3450,{"$f":"IF(X111 = 12, H111 + SUM(S111:S111) - SUM(T111:T111) - SUM(P111:P111) - V111,0)","v":3450},"2353023951","ООО \"Водоснаб\"",null,"Постоянно, в течение срока действия контракта;",null,null,null,null,null,null,null,null,null,null,12]
[13,"Муниципальная программа \"Развитие образования\"",null,"925 0000 0000000000244","№ 82","2021-01-25","Услуги по лабораторныи иследованиям смывов, консультация по иным вопросам",3157.87,{"$f":"IF(X112 = 13, H112 + SUM(S112:S112) - SUM(T112:T112) - SUM(P112:P112) - V112,0)","v":0},"2308105200","Тимашевский филиал ФБУЗ \"Центр гигиены и эпидемиологии в Краснодарском крае\"",null,"В течение 15 рабочих дней, со дня подписания сторонами контракта","2021-02-01","Не позднее 30 календарных дней с момента подписания акта и документа на оплату",3157.87,"2021-02-02",null,null,null,null,null,null,13]
[14,"Муниципальная программа \"Развитие образования\"",null,"925 0000 0000000000244","№ 525/21-С","2021-01-29","Услуги по техническому сопровождению Системы мониторинга транспортных средств",5400,{"$f":"IF(X113 = 14, H113 + SUM(S113:S120) - SUM(T113:T120) - SUM(P113:P120) - V113,0)","v":1800},"2310142841","ООО \"Техносити\"",null,"Постоянно, в течение срока действия контракта;","2021-01-29","Не позднее 30 календарных дней с момента подписания акта и документа на оплату",450,"2021-02-17",null,null,null,null,null,null,14]
[null,null,null,null,null,null,null,null,null,null,null,null,null,"2021-02-25",null,450,"2021-02-25",null,null,null,null,null,null,14]
[null,null,null,null,null,null,null,null,null,null,null,null,null,"2021-03-31",null,450,"2021-04-16",null,null,null,null,null,null,14]
[null,null,null,null,null,null,null,null,null,null,null,null,null,"2021-04-30",null,450,"2021-05-14",null,null,null,null,null,null,14]
[null,null,null,null,null,null,null,null,null,null,null,null,null,"2021-05-31",null,450,"2021-05-28",null,null,null,null,null,null,14]
[null,null,null,null,null,null,null,null,null,null,null,null,null,"2021-06-30",null,450,"2021-06-22",null,null,null,null,null,null,14]
[null,null,null,null,null,null,null,null,null,null,null,null,null,"2021-07-30",null,450,"2021-08-03",null,null,null,null,null,null,14]
[null,null,null,null,null,null,null,null,null,null,null,null,null,"2021-08-31",null,450,"2021-09-08",null,null,null,null,null,null,14]
[15,"Муниципальная программа \"Развитие образования\"",null,"925 0000 0000000000244","№ б/н","2021-01-29","Услуги по сбору и вывозу твердых коммунальных отходов ",18000,{"$f":"IF(X121 = 15, H121 + SUM(S121:S128) - SUM(T121:T128) - SUM(P121:P128) - V121,0)","v":6202.5},"2353246933","ООО \"Техкомбытсервис\"",null,"Постоянно, в течение срока действия контракта;","2021-01-31","Не позднее 30 календарных дней с момента подписания акта и документа на оплату",1690,"2021-02-25",null,null,null,null,null,null,15]
[null,null,null,null,null,null,null,null,null,null,null,null,null,"2021-02-28",null,715,"2021-03-10",null,null,null,null,null,null,15]
[null,null,null,null,null,null,null,null,null,null,null,null,null,"2021-03-31",null,1235,"2021-04-13",null,null,null,null,null,null,15]
[null,null,null,null,null,null,null,null,null,null,null,null,null,"2021-04-30",null,1072.5,"2021-05-13",null,null,null,null,null,null,15]
[null,null,null,null,null,null,null,null,null,null,null,null,null,"2021-05-31",null,1170,"2021-06-08",null,null,null,null,null,null,15]
[null,null,null,null,null,null,null,null,null,null,null,null,null,"2021-06-30",null,1820,"2021-07-07",null,null,null,null,null,null,15]
[null,null,null,null,null,null,null,null,null,null,null,null,null,"2021-07-31",null,3380,"2021-08-12",null,null,null,null,null,null,15]
[null,null,null,null,null,null,null,null,null,null,null,null,null,"2021-08-31",null,715,"2021-09-08",null,null,null,null,null,null,15]
[16,"Муниципальная программа \"Развитие образования\"",null,"925 0000 0000000000244","№ 15/2021","2021-02-04","Услуги по ремонту автотранспортного средства",3450,{"$f":"IF(X129 = 16, H129 + SUM(S129:S129) - SUM(T129:T129) - SUM(P129:P129) - V129,0)","v":0},"235300156997","ИП Ланговой Е.Я.",null,"В течение 15 рабочих дней, со дня подписания сторонами контракта","2021-02-04","Не позднее 30 календарных дней с момента подписания акта и документа на оплату",3450,"2021-02-08",null,null,null,null,null,null,16]
[17,"Муниципальная программа \"Развитие образования\"",null,"925 0000 0000000000244","№ 71-ЭО","2021-02-05","Оказание консультационных услуг по составлению экологической отчетности",4700,{"$f":"IF(X130 = 17, H130 + SUM(S130:S130) - SUM(T130:T130) - SUM(P130:P130) - V130,0)","v":0},"235306110100","ИП Казерова С.В.",null,"В течение 15 рабочих дней, со дня подписания сторонами контракта","2021-02-05","Не позднее 30 календарных дней с момента подписания акта и документа на оплату",4700,"2021-02-17",null,null,null,null,null,null,17]
[18,"Муниципальная программа \"Развитие образования\"",null,"925 0000 0000000000244","№ 001-ПН-21","2021-02-10","Испытания и измерения электроустановок и электрооборудования ",10586.76,{"$f":"IF(X131 = 18, H131 + SUM(S131:S131) - SUM(T131:T131) - SUM(P131:P131) - V131,0)","v":0},"2353015823","АО \"Энергетик\"",null,"В течение 30 рабочих дней, со дня подписания сторонами контракта","2021-05-12","После подписания акта выполненных работ",10586.76,"2021-05-14",null,null,null,null,null,null,18]
[19,"Муниципальная программа \"Развитие образования\"",null,"925 0000 0000000000244","№ ОН-23/21","2021-02-24","Образовательная услуга по дополнительной професиональной программе повышения квалификации",9500,{"$f":"IF(X132 = 19, H132 + SUM(S132:S132) - SUM(T132:T132) - SUM(P132:P132) - V132,0)","v":0},"2311163812","ООО \"Академия стратегического управления\"",null,"В течение 15 рабочих дней, со дня подписания сторонами контракта","2021-03-19","Не позднее 30 календарных дней с момента подписания акта и документа на оплату",9500,"2021-03-03",null,null,null,null,null,null,19]
[20,"Муниципальная программа \"Развитие образования\"",null,"925 0000 0000000000244","№ 24/21-П","2021-03-23","Приобретение автошины",22920,{"$f":"IF(X133 = 20, H133 + SUM(S133:S133) - SUM(T133:T133) - SUM(P133:P133) - V133,0)","v":0},"2309080735","ООО \"Шинхимтранс\"",null,"В течение 15 рабочих дней, со дня подписания сторонами контракта","2021-03-26","Не позднее 3 календарных дней с момента подписания акта и документа на оплату",22920,"2021-03-26",null,null,null,null,null,null,20]
[21,"Муниципальная программа \"Развитие образования\"",null,"925 0000 0000000000244","№ 16/21-У","2021-03-23","Услуги шиномонтажа",1920,{"$f":"IF(X134 = 21, H134 + SUM(S134:S134) - SUM(T134:T134) - SUM(P134:P134) - V134,0)","v":0},"2309080735","ООО \"Шинхимтранс\"",null,"В течение 15 рабочих дней, со дня подписания сторонами контракта","2021-03-26","Не позднее 3 календарных дней с момента подписания акта и документа на оплату",1920,"2021-03-26",null,null,null,null,null,null,21]
[22,"Муниципальная программа \"Развитие образования\"",null,"925 0000 0000000000244","№ 23050390/21","2021-03-29","Услуга на право использования программного продукта СКЗИ",5000,{"$f":"IF(X135 = 22, H135 + SUM(S135:S135) - SUM(T135:T135) - SUM(P135:P135) - V135,0)","v":0},"6663003127","АО \"ПФ \"СКБ Контур\"",null,"В течение 15 рабочих дней, со дня подписания сторонами контракта","2021-03-29","Не позднее 30 календарных дней с момента подписания акта и документа на оплату",5000,"2021-03-30",null,null,null,null,null,null,22]
[23,"Муниципальная программа \"Развитие образования\"",null,"925 0000 0000000000244","№ 267","2021-03-30","Услуга по формированию заявления  \"Карта предприятия\"",4500,{"$f":"IF(X136 = 23, H136 + SUM(S136:S136) - SUM(T136:T136) - SUM(P136:P136) - V136,0)","v":0},"2369000660","ООО \"КАНкор\"",null,"В течение 15 рабочих дней, со дня подписания сторонами контракта","2021-03-31","Не позднее 5 календарных дней с момента подписания акта и документа на оплату",4500,"2021-04-02",null,null,null,null,null,null,23]
[24,"Муниципальная программа \"Развитие образования\"",null,"925 0000 0000000000244","№ 04/21","2021-04-07","Услуга  по откачке и вывозу жидких бытовых отходов",4650,{"$f":"IF(X137 = 24, H137 + SUM(S137:S137) - SUM(T137:T137) - SUM(P137:P137) - V137,0)","v":4650},"2369007754","ООО \"РООС\"",null,"Постоянно, в течение срока действия контракта;",null,null,null,null,null,null,null,null,null,null,24]
[25,"Муниципальная программа \"Развитие образования\"",null,"925 0000 0000000000244","№ 65-20","2021-01-29","Услуга по систематической дератизации",6054.52,{"$f":"IF(X138 = 25, H138 + SUM(S138:S140) - SUM(T138:T140) - SUM(P138:P140) - V138,0)","v":1513.63},"2353018870","ООО \"Дезинфекция\"",null,"Постоянно, в течение срока действия контракта;",null,null,1513.63,"2021-04-13",null,null,null,null,null,null,25]
[null,null,null,null,null,null,null,null,null,null,null,null,null,"2021-06-17",null,1513.63,"2021-06-28",null,null,null,null,null,null,25]
[null,null,null,null,null,null,null,null,null,null,null,null,null,"2021-09-15",null,1513.63,"2021-09-16",null,null,null,null,null,null,25]
[26,"Муниципальная программа \"Развитие образования\"",null,"925 0000 0000000000244","№ 65/21/К","2021-04-08","Услуга по профилактической дезинсекции открытой территории",4700,{"$f":"IF(X141 = 26, H141 + SUM(S141:S141) - SUM(T141:T141) - SUM(P141:P141) - V141,0)","v":0},"2353018870","ООО \"Дезинфекция\"",null,"Постоянно, в течение срока действия контракта;",null,null,4700,"2021-06-02",null,null,null,null,null,null,26]
[27,"Муниципальная программа \"Развитие образования\"",null,"925 0000 0000000000244","№ 19","2021-04-14","Поставка учебно-педагогической документации",7980,{"$f":"IF(X142 = 27, H142 + SUM(S142:S142) - SUM(T142:T142) - SUM(P142:P142) - V142,0)","v":0},"2310132554","ООО \"Краснодарский учколлектор\"",null,"До 6 августа 2021 года включительно","2021-06-17",null,7980,"2021-06-22",null,null,null,null,null,null,27]
[28,"Муниципальная программа \"Развитие образования\"",null,"925 0000 0000000000244","№ 76/21","2021-04-19","Услуги по проведению предварительных и периодических осмотров (обследований) работников",111708,{"$f":"IF(X143 = 28, H143 + SUM(S143:S143) - SUM(T143:T143) - SUM(P143:P143) - V143,0)","v":0},"2353006498","ГБУЗ \"Тимашевская ЦРБ\"",null,"В течение 30 рабочих дней, со дня подписания сторонами контракта","2021-05-14",null,111708,"2021-05-27",null,null,null,null,null,null,28]
[29,"Муниципальная программа \"Развитие образования\"",null,"925 0000 0000000000244","№ 279-ТО","2021-05-26","Услуги по разработке технического отчета ",8000,{"$f":"IF(X144 = 29, H144 + SUM(S144:S144) - SUM(T144:T144) - SUM(P144:P144) - V144,0)","v":0},"235306110100","ИП Казерова С.В.",null,"В течение 30 рабочих дней, со дня подписания сторонами контракта","2021-05-26",null,8000,"2021-06-01",null,null,null,null,null,null,29]
[30,"Муниципальная программа \"Развитие образования\"",null,"925 0000 0000000000244","№ 274","2021-06-01","Приобретение модуля питания БП-12В/5А",8000,{"$f":"IF(X145 = 30, H145 + SUM(S145:S145) - SUM(T145:T145) - SUM(P145:P145) - V145,0)","v":0},"2353002302","ООО \"Сигнал\"",null,"В течение 30 рабочих дней, со дня подписания сторонами контракта","2021-06-01",null,8000,"2021-06-07",null,null,null,null,null,null,30]
[31,"Муниципальная программа \"Развитие образования\"",null,"925 0000 0000000000244","№ 389","2021-06-08","Приобрететие  блока СКЗИ тахографа, литеевой батареи, замена литеевой батареи, активация и настройка тахографа ",23500,{"$f":"IF(X146 = 31, H146 + SUM(S146:S148) - SUM(T146:T148) - SUM(P146:P148) - V146,0)","v":0},"2369000660","ООО \"КАНкор\"",null,"В течение 30 рабочих дней, со дня подписания сторонами контракта","2021-06-09",null,19000,"2021-06-15",null,null,null,null,null,null,31]
[null,null,null,null,null,null,null,null,null,null,null,null,null,"2021-06-09",null,500,"2021-06-16",null,null,null,null,null,null,31]
[null,null,null,null,null,null,null,null,null,null,null,null,null,"2021-06-09",null,4000,"2021-06-16",null,null,null,null,null,null,31]
[32,"Муниципальная программа \"Развитие образования\"",null,"925 0000 0000000000244","№ 34550721/022910","2021-07-01","Поставка бензина",49450,{"$f":"IF(X149 = 32, H149 + SUM(S149:S151) - SUM(T149:T151) - SUM(P149:P151) - V149,0)","v":18509.25},"7743529527","ООО \"РН-Карт\"",null,"Постоянно, в течение срока действия контракта;","2021-07-31","Не позднее 15 календарных дней с момента подписания акта и документа на оплату",8803.75,"2021-08-09",null,null,null,null,null,null,32]
[null,null,null,null,null,null,null,null,null,null,null,null,null,"2021-08-31",null,14232,"2021-09-08",null,null,null,null,null,null,32]
[null,null,null,null,null,null,null,null,null,null,null,null,null,"2021-09-30",null,7905,"2021-10-05",null,null,null,null,null,null,32]
[33,"Муниципальная программа \"Развитие образования\"",null,"925 0000 0000000000244","№ 107-39/223-21","2021-07-29","Услуга по распломбировке однофазного прибора учета электроэнергии",1140.98,{"$f":"IF(X152 = 33, H152 + SUM(S152:S152) - SUM(T152:T152) - SUM(P152:P152) - V152,0)","v":0},"2309001660","Филиал ПАО \"Россети Кубань\" Тимашевские электрические сети",null,"Постоянно, в течение срока действия контракта;","2021-08-03",null,1140.98,"2021-08-03",null,null,null,null,null,null,33]
[34,"Муниципальная программа \"Развитие образования\"",null,"925 0000 0000000000244","№ 70","2021-08-01","Услуги физической охраны объектов",293760,{"$f":"IF(X153 = 34, H153 + SUM(S153:S153) - SUM(T153:T153) - SUM(P153:P153) - V153,0)","v":293760},"2353021954","ООО \"ЧОП \"Беркут\"",null,"Постоянно, в течение срока действия контракта;",null,null,null,null,null,null,null,null,null,null,34]
[35,"Муниципальная программа \"Развитие образования\"",null,"925 0000 0000000000244","№ 34000734","2021-08-23","Услуги по охране объекта с ПЦН с использованием КТС/GSM",9096.2800000000007,{"$f":"IF(X154 = 35, H154 + SUM(S154:S154) - SUM(T154:T154) - SUM(P154:P154) - V154,0)","v":9096.2800000000007},"2310163739","ФГКУ УВО ВНГ России по Краснодарскому краю",null,"Постоянно, в течение срока действия контракта;",null,null,null,null,null,null,null,null,null,null,35]
[36,"Муниципальная программа \"Развитие образования\"",null,"925 0000 0000000000244","№ 174/21","2021-08-29","Услуги по проведению предварительных и периодических осмотров (обследований) работников",35694,{"$f":"IF(X155 = 36, H155 + SUM(S155:S155) - SUM(T155:T155) - SUM(P155:P155) - V155,0)","v":35694},"2353006498","ГБУЗ \"Тимашевская ЦРБ\"",null,"В течение 30 рабочих дней, со дня подписания сторонами контракта",null,null,null,null,null,null,null,null,null,null,36]
[37,"Муниципальная программа \"Развитие образования\"",null,"925 0000 0000000000244","№ 78","2021-09-22","Услуги по проверке сигнализаторов загазованности",1600,{"$f":"IF(X156 = 37, H156 + SUM(S156:S156) - SUM(T156:T156) - SUM(P156:P156) - V156,0)","v":0},"2353019627","ООО \"ХК \"Энергетик\"",null,"В течение 30 рабочих дней, со дня подписания сторонами контракта",null,"Не позднее 15 календарных дней с момента подписания акта и документа на оплату",1600,"2021-09-23",null,null,null,null,null,null,37]
[38,"Муниципальная программа \"Развитие образования\"",null,"925 0000 0000000000244","№ 152","2021-09-22","Услуги по проверке дымовых и вентиляционных каналов ",2400,{"$f":"IF(X157 = 38, H157 + SUM(S157:S157) - SUM(T157:T157) - SUM(P157:P157) - V157,0)","v":0},"235303841817","ИП Черненко А.Г.",null,"В течение 30 рабочих дней, со дня подписания сторонами контракта",null,"Не позднее 15 календарных дней с момента подписания акта и документа на оплату",2400,"2021-09-23",null,null,null,null,null,null,38]
[39,"Муниципальная программа \"Развитие образования\"",null,"925 0000 0000000000244","№ б/н","2021-09-24","Монтаж тревожнеой кнопки (КТС с выводом сигнала на пульт отдела вневедомственной охраны Росгвардии ",40752,{"$f":"IF(X158 = 39, H158 + SUM(S158:S158) - SUM(T158:T158) - SUM(P158:P158) - V158,0)","v":0},"232700864879","ИП Ус Л.А.",null,"В течение 30 рабочих дней, со дня подписания сторонами контракта",null,"Не позднее 15 календарных дней с момента подписания акта и документа на оплату",40752,"2021-09-29",null,null,null,null,null,null,39]
[null,null,null,null,null,null,null,null,null,null,null,null,null,null,null,null,null,null,null,null,null,null,null,40]

{"sheet":"Ед. поставщик п.5 ч.1","index":2,"n_rows":9,"n_cols":24,"rows_kept":9,"cut":false,"hidden":false,"merged":[[1,18,1,20],[1,5,1,6],[1,13,1,14]]}
[]
[null,null,null,null,null,"Сумма заключенных контрактов",null,{"$f":"SUM(H9:H9999)","v":0},null,null,null,null,null,"Сумма средств выплаченных по контрактам",null,{"$f":"SUM(P9:P9999)","v":0},null,null,"Общая сумма расторжений по контрактам/договорам",null,null,{"$f":"SUM(V9:V9999)","v":0}]
[]
[]
[]
["№ п/п","Наименование муниципальной программы, национального или регионального проекта","Контракт заключен в электронном виде посредством                             АИС \"Портал поставщиков\"   (Да/Нет)","Код бюджетной классификации","№ договора/контракта","Дата заключения договора/контракта","Предмет договора/контракта","Цена договора/контракта","Остаток по контракту","ИНН поставщика (подрядчика, исполнителя) ","Поставщик (подрядчик, исполнитель)","СМП и СОНО                       (Да/Нет)","Сроки поставки товара (оказания услуги, выполнения работы), согласно контракта; Предоставление документов на оплату Закзчику","Фактическая дата поставки товара (оказания услуги, выполнения работы) и (или) предоставление документов на оплату и подписание документов о приемке","Сроки оплаты согласно договора/контракта","Сумма согласно документа об исполнении контракта заказчиком","Фактическая дата оплаты","Изменение контракта (№, дата)","Изменение контракта (увеличение цены контракта в рублях)","Изменение контракта (уменьшение цены контракта в рублях)","Расторжение контракта (№, дата)","Сумма расторжения","Примечание"]
["1","2","3","4","5","6","7","8","9","10","11","12","13","14","15","16","17","18","19","20","21","22","23"]
["1","Муниципальная программа \"Развитие образования\"",null,"902 0113 1310110490 244","№ 1","2020-01-09","Поставка бумаги для офисной техники",20000,0,2353019514,"ИП Котляров К.И.",null,"В течение 15 рабочих дней, со дня подписания сторонами контракта","2020-01-10","Не позднее 30 календарных дней с момента подписания Заказчиком и Подрядчиком акта приема-сдачи и предоставленного Подрядчиком документа на оплату",20000,"2020-01-10",null,null,null,null,null,"Пример"]
[null,null,null,null,null,null,null,null,null,null,null,null,null,null,null,null,null,null,null,null,null,null,null,2]

{"sheet":"Ед.поставщик за искл. п.4,5 ч.1","index":3,"n_rows":9,"n_cols":22,"rows_kept":9,"cut":false,"hidden":false,"merged":[[1,16,1,18],[1,4,1,5],[1,11,1,12]]}
[]
[null,null,null,null,"Сумма заключенных контрактов",null,{"$f":"SUM(G9:G9999)","v":0},null,null,null,null,"Сумма средств выплаченных по контрактам",null,{"$f":"SUM(N9:N9999)","v":0},null,null,"Общая сумма расторжений по контрактам/договорам",null,null,{"$f":"SUM(T9:T9999)","v":0}]
[]
[]
[]
["№ п/п","№ в реестре контрактов ","Код бюджетной классификации","№ контракта","Дата заключения","Предмет договора/контракта","Цена контракта (Объем финансового обеспечения подлежащий к оплате в текущем фин. году)","Остаток по контракту","ИНН поставщика (подрядчика, исполнителя) ","Поставщик (подрядчик, исполнитель)","Сроки поставки товара (оказания услуги, выполнения работы), согласно контракта; Предоставление документов на оплату Закзчику","Фактическая дата поставки товара (оказания услуги, выполнения работы) и (или) предоставление документов на оплату и подписание документов о приемке","Сроки оплаты согласно договора/контракта","Сумма согласно документа об исполнении контракта заказчиком","Фактическая дата оплаты","Изменение контракта (№, дата)","Изменение контракта (увеличение цены контракта в рублях)","Изменение контракта (уменьшение цены контракта в рублях)","Расторжение контракта (№, дата)","Сумма расторжения","Примечание"]
["1","2","3","4","5","6","7","8","9","10","11","12","13","14","15","16","17","18","19","20","21"]
["1","3235301125818100175","9020104 5210000190244","123","2019-12-24","Поставка электрической энергии",100000,90000,2308091759,"АО \"НЭСК\"","Поставка электрической энергии осуществляется постоянно, в течение срока действия контракта","2019-12-02","До 10 числа расчетного месяца в размере 30%, до 25 числа расчетного месяца 40%, до 18 числа месяца, следующего за расчетным",10000,"2019-01-24",null,null,null,null,null,"Пример"]
[null,null,null,null,null,null,null,null,null,null,null,null,null,null,null,null,null,null,null,null,null,2]

{"sheet":"Состоявшиеся аукционы","index":4,"n_rows":9,"n_cols":30,"rows_kept":9,"cut":false,"hidden":false,"merged":[[1,4,1,5],[1,14,1,15],[1,24,1,26],[1,19,1,20]]}
[]
[null,null,null,null,"Сумма начальных (максимальных) цен контрактов",null,{"$f":"SUM(G9:G9996)","v":0},null,null,null,null,null,null,null,"Сумма заключенных контрактов",null,{"$f":"SUM(Q9:Q9996)","v":0},null,null,"Сумма средств выплаченных по контрактам",null,{"$f":"SUM(V9:V9996)","v":0},null,null,"Общая сумма расторжений по контрактам/договорам",null,null,{"$f":"SUM(AB9:AB9996)","v":0}]
[]
[]
[]
["№ п/п","Наименование муниципальной программы, национального или регионального проекта","ИКЗ (Идентификационный код закупки)","Код бюджетной классификации","№ извещения","Объект закупки","Н(М)ЦК","Экономия","Количество поданных заявок","Количество заявок признанные несоответствующими","СМП и СОНО","№ в реестре контрактов","№ контракта","Дата заключения","ИНН поставщика (подрядчика, исполнителя) ","Поставщик (подрядчик, исполнитель)","Цена контракта","Остаток по контракту","Сроки поставки товара (оказания услуги, выполнения работы), согласно контракта","Фактическая дата поставки товара (оказания услуги, выполнения работы) и (или) предоставление документов на оплату и подписание документов о приемке","Сроки оплаты согласно контракта","Сумма согласно документа об исполнении контракта заказчиком","Фактическая дата оплаты","Изменение контракта (№, дата)","Изменение контракта (увеличение цены контракта в рублях)","Изменение контракта (уменьшение цены контракта в рублях)","Расторжение контракта (№, дата)","Сумма расторжения","Примечание"]
["1","2","3","4","5","6","7","8","9","10","11","12","13","14","15","16","17","18","19","20","21","22","23","24","25","26","27","28","29"]
["1",null,"193235301125823530100103000010000244 ","902 0113 1210310010 244","0818300019919000194","Поставка картриджа и тонер-картриджей ",15500.01,{"$f":"G8-Q8","v":6725},6,0,"Нет","3235301125819000079","Ф.2019.412162","2019-07-09","3443923035"," ООО \"АНАЛИТИК ЦЕНТР\" ",8775.01,{"$f":"Q8-V8","v":0},"В течение 20 рабочих дней со дня заключения сторонами муниципального контракта","2019-07-31","Не позднее 30 календарных дней с момента подписания Заказчиком документа о приемке выполненных работ и представленного Подрядчиком документа на оплату",8775.01,"2019-08-19",null,null,null,null,null,"Пример"]
[null,null,null,null,null,null,null,null,null,null,null,null,null,null,null,null,null,null,null,null,null,null,null,null,null,null,null,null,null,2]

{"sheet":"Несостоявшиеся аукционы","index":5,"n_rows":9,"n_cols":30,"rows_kept":9,"cut":false,"hidden":false,"merged":[[1,4,1,5],[1,14,1,15],[1,24,1,26],[1,19,1,20]]}
[]
[null,null,null,null,"Сумма начальных (максимальных) цен контрактов",null,{"$f":"SUM(G9:G9996)","v":0},null,null,null,null,null,null,null,"Сумма заключенных контрактов",null,{"$f":"SUM(Q9:Q9996)","v":0},null,null,"Сумма средств выплаченных по контрактам",null,{"$f":"SUM(V9:V9996)","v":0},null,null,"Общая сумма расторжений по контрактам/договорам",null,null,{"$f":"SUM(AB9:AB9996)","v":0}]
[]
[]
[]
["№ п/п","Наименование муниципальной программы, национального или регионального проекта","ИКЗ (Идентификационный код закупки)","Код бюджетной классификации","№ извещения","Объект закупки","Н(М)ЦК","Экономия","Количество поданных заявок","Количество заявок признанные несоответствующими","СМП и СОНО","№ в реестре контрактов","№ контракта","Дата заключения","ИНН поставщика (подрядчика, исполнителя) ","Поставщик (подрядчик, исполнитель)","Цена контракта (Объем финансового обеспечения подлежащий к оплате в текущем фин. году)","Остаток по контракту","Сроки поставки товара (оказания услуги, выполнения работы), согласно контракта","Фактическая дата поставки товара (оказания услуги, выполнения работы) и (или) предоставление документов на оплату и подписание документов о приемке","Сроки оплаты согласно контракта","Сумма согласно документа об исполнении контракта заказчиком","Фактическая дата оплаты","Изменение контракта (№, дата)","Изменение контракта (увеличение цены контракта в рублях)","Изменение контракта (уменьшение цены контракта в рублях)","Расторжение контракта (№, дата)","Сумма расторжения","Примечание"]
["1","2","3","4","5","6","7","8","9","10","11","12","13","14","15","16","17","18","19","20","21","22","23","24","25","26","27","28","29"]
["1",null,"193235301125823530100103000010000244 ","902 0113 1210310010 244","0818300019919000194","Поставка картриджа и тонер-картриджей ",15500.01,{"$f":"G8-Q8","v":6725},6,0,"Нет","3235301125819000079","Ф.2019.412162","2019-07-09","3443923035"," ООО \"АНАЛИТИК ЦЕНТР\" ",8775.01,{"$f":"Q8-V8","v":0},"В течение 20 рабочих дней со дня заключения сторонами муниципального контракта","2019-07-31","Не позднее 30 календарных дней с момента подписания Заказчиком документа о приемке выполненных работ и представленного Подрядчиком документа на оплату",8775.01,"2019-08-19",null,null,null,null,null,"Пример"]
[null,null,null,null,null,null,null,null,null,null,null,null,null,null,null,null,null,null,null,null,null,null,null,null,null,null,null,null,null,2]

{"sheet":"Иные конкурентные закупки","index":6,"n_rows":9,"n_cols":30,"rows_kept":9,"cut":false,"hidden":false,"merged":[[3,15,3,17],[1,4,1,5],[1,14,1,15],[1,24,1,26],[1,19,1,20]]}
[]
[null,null,null,null,"Сумма начальных (максимальных) цен контрактов",null,{"$f":"SUM(G9:G9995)","v":0},null,null,null,null,null,null,null,"Сумма заключенных контрактов",null,{"$f":"SUM(Q9:Q9995)","v":0},null,null,"Сумма средств выплаченных по контрактам",null,{"$f":"SUM(V9:V9995)","v":0},null,null,"Общая сумма расторжений по контрактам/договорам",null,null,{"$f":"SUM(AB9:AB9995)","v":0}]
[]
[]
[]
["№ п/п","Наименование муниципальной программы, национального или регионального проекта","ИКЗ (Идентификационный код закупки)","Код бюджетной классификации","№ извещения","Объект закупки","Н(М)ЦК","Экономия","Количество поданных заявок","Количество заявок признанные несоответствующими","СМП и СОНО","№ в реестре контрактов","№ контракта","Дата заключения","ИНН поставщика (подрядчика, исполнителя) ","Поставщик (подрядчик, исполнитель)","Цена контракта","Остаток по контракту","Сроки поставки товара (оказания услуги, выполнения работы), согласно контракта","Фактическая дата поставки товара (оказания услуги, выполнения работы) и (или) предоставление документов на оплату и подписание документов о приемке","Сроки оплаты согласно контракта","Сумма согласно документа об исполнении контракта заказчиком","Фактическая дата оплаты","Изменение контракта (№, дата)","Изменение контракта (увеличение цены контракта в рублях)","Изменение контракта (уменьшение цены контракта в рублях)","Расторжение контракта (№, дата)","Сумма расторжения","Примечание"]
[1,2,3,4,5,6,7,8,9,10,11,12,13,14,15,16,17,18,19,20,21,22,23,24,25,26,27,28,29]
["1",null,"193235301125823530100103000010000244 ","902 0113 1210310010 244","0818300019919000194","Поставка картриджа и тонер-картриджей ",15500.01,{"$f":"G8-Q8","v":6725},6,0,"Нет","3235301125819000079","Ф.2019.412162","2019-07-09","3443923035"," ООО \"АНАЛИТИК ЦЕНТР\" ",8775.01,{"$f":"Q8-V8","v":0},"В течение 20 рабочих дней со дня заключения сторонами муниципального контракта","2019-07-31","Не позднее 30 календарных дней с момента подписания Заказчиком документа о приемке выполненных работ и представленного Подрядчиком документа на оплату",8775.01,"2019-08-19",null,null,null,null,null,"Пример"]
[null,null,null,null,null,null,null,null,null,null,null,null,null,null,null,null,null,null,null,null,null,null,null,null,null,null,null,null,null,2]

{"sheet":"Настройки","index":7,"n_rows":17,"n_cols":11,"rows_kept":17,"cut":false,"hidden":true,"merged":[[15,3,16,3],[0,3,1,3],[3,3,4,3],[6,3,7,3],[9,3,10,3],[12,3,13,3]]}
[158,39,9,"Ед. поставщик п.4 ч.1 ",null,"Index","Index","Index","Index","Index","Index"]
["TekStrokaP4","TekNomerP4","NachStrokaP4",null,null,39,0,0,0,0,0]
[null,null,null,null,null,"Index+1","Index+1","Index+1","Index+1","Index+1","Index+1"]
[8,0,9,"Ед. поставщик п.5 ч.1 ",null,40,0,0,0,0,0]
["TekStrokaP5","TekNomerP5","NachStrokaP5"]
[]
[8,0,9,"Ед.поставщик за искл. п.4,5 ч.1"]
["TekStrokaSt93","TekNomerSt93","NachStrokaSt93"]
[]
[8,0,9,"Состоявшиеся аукционы"]
["TekStrokaSEA","TekNomerSEA","NachStrokaSEA"]
[]
[8,0,9,"Несостоявшиеся аукционы"]
["TekStrokaNEA","TekNomerNEA","NachStrokaNEA"]
[]
[8,0,9,"Иные конкурентные закупки"]
["TekStrokaIKZ","TekNomerIKZ","NachStrokaIKZ"]